bitfinex-derivatives/quotes_ETHF0:USTF0_20250224
["timestamp","ask_amount","ask_price","bid_price","bid_amount"]
[1740420609597,5.85174591,2667.4,2666.8,3.2078]
[1740420609802,5.85174591,2667.4,2667.0,3.2078]
[1740420609995,5.85174591,2667.4,2667.1,40.8]
[1740420610202,6.60144591,2667.4,2667.1,40.8]
[1740420610412,6.60144591,2667.4,2667.3,0.74973]
[1740420610607,3.2078,2668.2,2667.3,3.0]
[1740420610910,3.2078,2668.9,2668.0,3.2078]
[1740420611103,3.2078,2668.9,2668.1,44.9529]
[1740420611311,3.2078,2668.6,2668.2,0.0056243]
[1740420611505,0.74945,2668.3,2668.2,0.0056243]
[1740420611807,0.74945,2668.3,2668.2,3.0296243]
[1740420612000,3.95725,2668.3,2668.2,0.0056243]
[1740420612307,3.2078,2668.3,2668.2,0.0056243]
[1740420612509,3.95725,2668.3,2668.2,0.0056243]
[1740420613001,3.95725,2668.3,2668.2,4.3e-06]
[1740420614906,9.95725,2668.3,2668.2,4.3e-06]
[1740420615108,10.01786276,2668.3,2668.2,4.3e-06]
[1740420615810,9.26841276,2668.3,2667.0,3.031]
[1740420616114,0.74978,2667.1,2667.0,3.031]
[1740420616404,0.74984,2666.9,2666.7,3.032]
[1740420616598,0.74983,2667.0,2666.8,0.74985]
[1740420616800,0.74987,2666.8,2666.7,3.032]
[1740420616997,0.0056243,2667.2,2666.6,0.0056243]
[1740420617205,0.7499,2666.7,2666.6,0.0056243]
[1740420620308,3.2078,2667.1,2666.6,0.0056243]
[1740420620713,0.7499,2666.7,2666.6,0.0056243]
[1740420623917,0.7499,2666.7,2666.6,0.7555443]
[1740420624109,0.7499,2666.7,2666.6,0.0056243]
[1740420625815,0.74988,2666.8,2666.6,0.0056243]
[1740420626016,0.7499,2666.7,2666.6,0.0056243]
[1740420626217,0.0056243,2667.2,2666.6,0.0056243]
[1740420626411,0.0056243,2667.2,2666.6,0.5459243]
[1740420626917,0.0056243,2667.2,2667.0,3.2078]
[1740420627122,3.2078,2667.9,2667.1,6.77986]
[1740420627417,3.2078,2667.9,2667.3,3.2078]
[1740420627620,0.74966,2667.6,2667.5,0.74964]
[1740420627811,0.74966,2667.6,2667.5,3.78364]
[1740420628011,0.74966,2667.6,2667.5,3.034]
[1740420628821,0.74973,2667.3,2667.2,0.5403]
[1740420629121,0.74973,2667.3,2667.2,3.5723]
[1740420629315,0.74971,2667.4,2667.3,0.74971]
[1740420629515,3.2078,2667.6,2667.2,3.5723]
[1740420629711,0.74973,2667.3,2667.2,3.5723]
[1740420629909,0.74973,2667.3,2667.2,4.32206]
[1740420630422,0.74971,2667.4,2667.3,0.7497]
[1740420630619,0.74973,2667.3,2667.2,3.5723]
[1740420631716,0.74973,2667.3,2667.2,3.032]
[1740420631922,0.74973,2667.3,2667.2,3.78176]
[1740420632717,0.7497,2667.5,2667.4,0.74968]
[1740420632918,3.2078,2667.6,2667.5,0.74967]
[1740420633925,0.5433,2667.9,2667.4,0.5517]
[1740420635424,3.2078,2667.7,2667.4,0.5517]
[1740420635628,3.2078,2667.7,2667.2,3.032]
[1740420636726,3.2078,2667.7,2667.1,1.1704]
[1740420636727,3.5839,2667.7,2667.1,1.1704]
[1740420636921,3.2078,2667.4,2667.1,3.029]
[1740420637118,3.2078,2667.4,2666.9,3.03]
[1740420637314,3.2078,2667.1,2666.9,3.03]
[1740420641117,3.7414,2667.5,2667.0,0.5756]
[1740420649725,0.5649,2667.8,2667.2,3.2078]
[1740420649929,0.5764,2667.9,2667.3,3.5874]
[1740420650131,0.5552,2667.8,2667.3,3.5874]
[1740420650335,0.5552,2667.8,2667.4,40.8]
[1740420650934,3.7624,2668.2,2667.4,40.8]
[1740420651237,4.3171,2668.2,2667.4,40.8]
[1740420651741,4.3171,2668.2,2667.5,0.45711896]
[1740420651943,3.7625,2668.2,2667.4,40.8]
[1740420652836,3.7625,2668.2,2667.5,3.2078]
[1740420653138,0.5547,2668.2,2667.5,3.2078]
[1740420653329,0.5547,2668.2,2667.6,0.99561269]
[1740420653531,0.5547,2668.2,2667.7,3.013]
[1740420653736,3.745,2668.5,2667.7,3.5862]
[1740420654043,4.3246,2668.5,2667.7,3.5862]
[1740420654633,3.7874,2668.5,2667.8,3.2078]
[1740420654840,3.2078,2669.0,2668.1,3.2078]
[1740420655139,1.87341,2668.6,2668.2,3.5495]
[1740420655341,0.74942,2668.4,2668.3,0.0056243]
[1740420655735,0.74942,2668.4,2668.3,0.7550743]
[1740420655943,0.74942,2668.4,2668.3,0.0056243]
[1740420656841,3.95722,2668.4,2668.3,0.0056243]
[1740420657237,3.2078,2668.4,2668.3,0.0056243]
[1740420660347,3.2078,2668.7,2668.3,0.0056243]
[1740420660737,3.2078,2668.7,2668.4,3.008]
[1740420660939,3.2078,2668.7,2668.4,3.5858]
[1740420661139,3.3841,2669.3,2668.5,0.5435]
[1740420661140,3.2078,2669.3,2668.5,0.5435]
[1740420661335,3.7519,2669.3,2668.6,1.87341]
[1740420661540,3.2078,2669.0,2668.5,0.5435]
[1740420661736,3.2078,2669.0,2668.5,3.5535]
[1740420662043,0.74932,2668.8,2668.7,0.7493]
[1740420662342,3.2078,2669.0,2668.5,3.5535]
[1740420662542,0.74933,2668.8,2668.7,0.74932]
[1740420662843,0.74939,2668.5,2668.4,0.5778]
[1740420663047,0.74942,2668.4,2668.3,3.0166243]
[1740420663245,0.74942,2668.4,2668.3,0.7550743]
[1740420663449,0.74942,2668.4,2668.3,0.0056243]
[1740420663751,0.74934,2668.7,2668.5,0.74936]
[1740420663941,0.5399,2668.9,2668.5,3.02]
[1740420664142,0.74936,2668.6,2668.5,3.02]
[1740420664843,1.0845,2668.9,2668.5,3.02]
[1740420665148,0.74936,2668.7,2668.6,0.74935]
[1740420665649,0.74936,2668.6,2668.5,3.02]
[1740420665853,0.74942,2668.4,2668.3,3.2134243]
[1740420666044,0.74942,2668.4,2668.3,0.0056243]
[1740420666341,0.7494,2668.5,2668.4,0.7494]
[1740420667139,0.74942,2668.4,2668.3,0.0056243]
[1740420667339,0.74941,2668.5,2668.4,0.74941]
[1740420667541,0.74942,2668.4,2668.3,0.0056243]
[1740420668046,0.74942,2668.4,2668.3,0.7550743]
[1740420668346,0.74942,2668.4,2668.3,0.0056243]
[1740420668547,3.95722,2668.4,2668.3,0.0056243]
[1740420669548,0.74966,2667.6,2667.3,3.2078]
[1740420669848,0.74968,2667.5,2667.4,4.1238]
[1740420670048,0.74968,2667.5,2667.4,1.1048]
[1740420670450,0.7497,2667.4,2667.3,3.021]
[1740420670646,0.7497,2667.4,2667.3,3.77073]
[1740420671044,0.7497,2667.4,2667.3,3.021]
[1740420671552,0.7497,2667.5,2667.4,0.74968]
[1740420672250,0.7552843,2667.6,2667.5,0.74967]
[1740420672652,0.0056243,2667.6,2667.5,3.95747]
[1740420672854,0.0056243,2667.6,2667.3,3.021]
[1740420673045,0.0056243,2667.6,2667.5,0.74967]
[1740420673756,0.0056243,2667.6,2667.3,3.021]
[1740420673958,0.74968,2667.5,2667.4,0.74968]
[1740420674254,0.0056243,2667.6,2667.5,0.74967]
[1740420674450,0.7552643,2667.6,2667.5,0.74967]
[1740420674650,0.0056243,2667.6,2667.5,0.74967]
[1740420676148,0.0056243,2667.6,2667.5,3.95747]
[1740420676355,1.32,2668.1,2668.0,0.74953]
[1740420676551,0.5705,2668.1,2668.0,0.74953]
[1740420676756,0.74953,2668.0,2667.9,3.017]
[1740420677454,4.3513,2668.3,2667.9,3.017]
[1740420677954,0.74953,2668.1,2668.0,0.7495]
[1740420678159,0.7495,2668.2,2668.1,0.74947]
[1740420678351,4.3513,2668.3,2667.9,3.017]
[1740420678555,0.74953,2668.1,2668.0,0.74951]
[1740420678956,4.3513,2668.3,2668.0,0.74951]
[1740420678957,3.95725,2668.3,2668.2,0.74947]
[1740420679155,3.2078,2668.3,2667.9,3.017]
[1740420680554,0.5485,2668.5,2667.9,3.017]
[1740420680755,4.3533,2668.8,2667.9,3.017]
[1740420680948,4.8933,2668.8,2668.1,3.2078]
[1740420681148,4.8933,2668.8,2668.2,0.5541]
[1740420681360,4.8933,2668.8,2668.3,3.013]
[1740420682060,0.54,2668.8,2668.4,3.2078]
[1740420682258,3.2078,2669.2,2668.4,3.2078]
[1740420682456,0.54,2669.1,2668.4,3.2078]
[1740420682656,0.54,2669.1,2668.5,40.8056243]
[1740420683159,1.6863,2669.1,2668.5,0.0056243]
[1740420683358,0.54,2669.1,2668.5,0.0056243]
[1740420685256,3.2078,2668.9,2668.5,0.0056243]
[1740420685457,3.2078,2668.6,2668.5,0.0056243]
[1740420688759,3.5839,2668.6,2668.5,0.0056243]
[1740420689465,9.5839,2668.6,2668.5,4.3e-06]
[1740420690071,3.5839,2668.6,2668.5,4.3e-06]
[1740420690461,9.5839,2668.6,2668.5,4.3e-06]
[1740420690659,9.64430819,2668.6,2668.5,4.3e-06]
[1740420693263,9.26820819,2668.6,2668.5,4.3e-06]
[1740420693461,9.64430819,2668.6,2668.5,4.3e-06]
[1740420694272,3.64430819,2668.6,2668.5,4.3e-06]
[1740420694464,6.28020819,2668.6,2668.5,4.3e-06]
[1740420695570,12.28020819,2668.6,2668.5,4.3e-06]
[1740420697471,12.2198,2668.6,2668.5,4.3e-06]
[1740420697880,12.5959,2668.6,2668.5,4.3e-06]
[1740420698272,13.07670485,2668.6,2667.0,3.01]
[1740420698467,3.2078,2667.6,2667.0,4.97066181]
[1740420699068,3.2078,2667.6,2667.0,4.6735]
[1740420699567,3.2078,2667.6,2667.0,1.6691243]
[1740420699775,3.2078,2667.2,2667.0,1.6691243]
[1740420700175,0.0056243,2667.4,2667.0,1.6691243]
[1740420700370,3.2078,2667.3,2667.0,1.6691243]
[1740420701367,3.2078,2667.3,2667.0,0.0056243]
[1740420701668,0.5807,2667.2,2667.0,0.0056243]
[1740420704176,0.5894,2667.1,2667.0,0.0056243]
[1740420704575,3.5934,2667.1,2667.0,4.3e-06]
[1740420705274,3.9695,2667.1,2667.0,4.3e-06]
[1740420706071,0.5894,2667.1,2667.0,4.3e-06]
[1740420707373,0.9655,2667.1,2667.0,4.3e-06]
[1740420708281,0.5894,2667.1,2667.0,4.3e-06]
[1740420708677,1.142,2667.2,2667.0,4.3e-06]
[1740420708977,3.2078,2667.3,2667.0,4.3e-06]
[1740420709281,0.0056243,2667.4,2667.1,40.8]
[1740420709479,0.0056243,2667.4,2667.2,0.5909]
[1740420716491,3.2078,2667.3,2667.2,0.5909]
[1740420718796,3.5831,2667.3,2667.2,0.5909]
[1740420719203,3.5831,2667.3,2667.0,4.3e-06]
[1740420719601,0.3753,2667.1,2667.0,4.3e-06]
[1740420720302,3.005,2667.2,2667.0,4.3e-06]
[1740420721498,3.3803,2667.2,2667.0,4.3e-06]
[1740420721994,3.005,2667.2,2667.0,4.3e-06]
[1740420722500,3.2078,2667.3,2667.0,4.3e-06]
[1740420724505,0.06037884,2667.2,2667.0,4.3e-06]
[1740420724709,3.3753,2667.1,2667.0,4.3e-06]
[1740420724909,4.01108413,2667.1,2667.0,4.3e-06]
[1740420725808,10.01108413,2667.1,2667.0,4.3e-06]
[1740420727013,10.01101862,2667.1,2667.0,4.3e-06]
[1740420727208,4.01101862,2667.1,2667.0,4.3e-06]
[1740420727608,10.01101862,2667.1,2667.0,4.3e-06]
[1740420728008,4.01101862,2667.1,2667.0,4.3e-06]
[1740420729010,3.63571862,2667.1,2667.0,4.3e-06]
[1740420729211,4.01101862,2667.1,2667.0,4.3e-06]
[1740420729912,3.63571862,2667.1,2667.0,4.3e-06]
[1740420730313,10.01101862,2667.1,2667.0,4.3e-06]
[1740420735211,10.01105013,2667.1,2667.0,4.3e-06]
[1740420736517,4.00605013,2667.1,2667.0,4.3e-06]
[1740420736921,4.28671617,2667.1,2667.0,4.3e-06]
[1740420737311,1.01105013,2667.1,2667.0,4.3e-06]
[1740420737618,4.00605013,2667.1,2667.0,4.3e-06]
[1740420737811,10.00605013,2667.1,2667.0,4.3e-06]
[1740420738813,4.00605013,2667.1,2667.0,4.3e-06]
[1740420740312,4.00603917,2667.1,2667.0,4.3e-06]
[1740420740914,1.01103917,2667.1,2667.0,4.3e-06]
[1740420741218,4.00703917,2667.1,2667.0,4.3e-06]
[1740420741819,3.9467,2667.1,2667.0,4.3e-06]
[1740420742024,4.00703892,2667.1,2667.0,4.3e-06]
[1740420742917,0.63573892,2667.1,2667.0,4.3e-06]
[1740420743120,3.43163892,2667.1,2667.0,4.3e-06]
[1740420744817,0.06033892,2667.1,2667.0,4.3e-06]
[1740420745015,3.3713,2667.1,2667.0,4.3e-06]
[1740420745216,3.2078,2667.3,2667.0,4.3e-06]
[1740420745415,6.2028,2667.3,2667.0,4.3e-06]
[1740420746023,0.3753,2667.2,2667.0,4.3e-06]
[1740420749525,0.06037989,2667.1,2667.0,4.3e-06]
[1740420750419,0.3753,2667.2,2667.0,4.3e-06]
[1740420750616,0.06037538,2667.1,2667.0,4.3e-06]
[1740420751126,0.06037538,2667.1,2665.8,0.5518]
[1740420751127,0.3753,2666.9,2665.8,0.5518]
[1740420751329,3.2078,2665.9,2665.8,0.5518]
[1740420753222,3.95792,2665.9,2665.8,0.5518]
[1740420754018,0.75018,2665.7,2665.6,0.0056243]
[1740420754326,3.74518,2665.7,2665.6,0.0056243]
[1740420756527,4.31818,2665.7,2665.6,0.0056243]
[1740420758230,3.74618,2665.7,2665.6,0.0056243]
[1740420763729,3.8065322,2665.7,2665.6,0.0056243]
[1740420763937,3.74618,2665.7,2665.6,0.0056243]
[1740420764432,3.80651778,2665.7,2665.6,0.0056243]
[1740420765230,3.74618,2665.7,2665.6,0.0056243]
[1740420765632,0.75018,2665.7,2665.6,0.0056243]
[1740420765833,0.75016,2665.8,2665.6,0.0056243]
[1740420766029,3.2134243,2665.9,2665.6,0.0056243]
[1740420774542,2.996,2665.8,2665.6,0.0056243]
[1740420774745,4.6929,2665.8,2665.6,0.0056243]
[1740420775537,0.06031507,2665.7,2665.6,0.0056243]
[1740420781540,0.06031507,2665.7,2665.6,4.3e-06]
[1740420783947,5.0682,2665.8,2665.6,4.3e-06]
[1740420784147,0.0603885,2665.7,2665.6,4.3e-06]
[1740420784742,0.06039816,2665.7,2665.6,4.3e-06]
[1740420787939,0.06040497,2665.7,2665.6,4.3e-06]
[1740420788543,6.43570497,2665.7,2665.6,4.3e-06]
[1740420788741,6.91833428,2665.7,2665.6,4.3e-06]
[1740420789344,6.91833428,2665.7,2664.8,0.5471]
[1740420789545,3.2078,2664.9,2664.8,0.5471]
[1740420792847,3.2078,2665.2,2664.8,0.5471]
[1740420793752,3.2078,2664.9,2664.8,0.5471]
[1740420797951,3.2078,2665.2,2664.8,0.5471]
[1740420798952,3.2078,2664.9,2664.8,0.5471]
[1740420800055,3.2078,2665.3,2664.8,6.5471]
[1740420800359,3.2078,2665.3,2664.8,0.5471]
[1740420800560,6.2038,2665.6,2664.8,0.5471]
[1740420801450,3.2078,2665.3,2664.8,0.5471]
[1740420802660,3.2078,2665.0,2664.8,0.5471]
[1740420812862,3.2078,2665.3,2664.8,0.5471]
[1740420817163,3.2078,2665.3,2664.9,2.995]
[1740420820872,1.1487,2665.2,2664.9,2.995]
[1740420821069,3.2078,2665.0,2664.8,0.5471]
[1740420821272,3.2078,2665.0,2664.6,0.0056243]
[1740420821472,3.2078,2664.7,2664.6,0.0056243]
[1740420822164,3.2078,2664.7,2663.4,5.08482]
[1740420822364,0.75072,2663.8,2663.7,0.75072]
[1740420822871,0.5851,2664.1,2663.5,1.04351461]
[1740420823069,0.7507,2663.9,2663.8,0.7507]
[1740420823267,0.5851,2664.1,2663.5,3.5802]
[1740420823469,0.75068,2664.0,2663.9,0.75067]
[1740420823872,0.7507,2663.9,2663.8,0.75069]
[1740420825978,0.5833,2664.0,2663.6,0.0056243]
[1740420826280,0.7507,2663.9,2663.8,0.75068]
[1740420826472,0.5833,2664.0,2663.9,0.75068]
[1740420826670,0.75066,2664.0,2663.9,0.75068]
[1740420826869,0.0056243,2664.1,2664.0,0.75066]
[1740420828076,0.0056243,2664.1,2664.0,9.95846]
[1740420828377,0.0056243,2664.1,2664.0,3.95846]
[1740420828579,0.0056243,2664.1,2664.0,4.52606]
[1740420829178,0.0056243,2664.1,2664.0,3.7754]
[1740420829473,0.0056243,2664.1,2664.0,0.5676]
[1740420829776,0.0056243,2664.1,2664.0,2.995]
[1740420830178,0.0056243,2664.1,2663.7,4.3217]
[1740420830381,0.0056243,2664.1,2663.7,4.1089]
[1740420830577,0.0056243,2664.1,2663.7,2.995]
[1740420830779,0.0056243,2664.1,2663.6,0.0056243]
[1740420831382,0.0056243,2664.1,2663.7,0.75071]
[1740420831383,0.75073,2663.8,2663.7,0.75071]
[1740420831585,0.7507,2663.9,2663.8,0.75068]
[1740420832682,1.31447,2664.0,2663.9,0.75068]
[1740420834979,0.5638,2664.0,2663.9,0.75068]
[1740420835283,0.0056243,2664.1,2664.0,0.75066]
[1740420835985,0.0056243,2664.1,2664.0,3.95846]
[1740420836183,0.0056243,2664.1,2664.0,3.2078]
[1740420838483,0.0056243,2664.1,2663.9,2.995]
[1740420839391,0.0056243,2664.1,2663.7,0.5873]
[1740420839587,0.0056243,2664.1,2663.6,1.0860243]
[1740420839588,0.0056243,2664.1,2663.8,2.995]
[1740420839791,0.5816243,2664.1,2663.8,2.995]
[1740420840294,0.5745,2664.0,2663.8,2.995]
[1740420840589,0.5412,2663.9,2663.8,2.995]
[1740420841486,0.5412,2663.9,2663.6,1.0860243]
[1740420842291,0.0056243,2664.1,2663.6,1.0860243]
[1740420842487,0.0056243,2664.1,2663.7,0.5799]
[1740420844187,0.0056243,2664.1,2663.6,1.0860243]
[1740420848102,0.0056243,2664.1,2663.6,4.0810243]
[1740420848498,0.0056243,2664.1,2663.6,1.0860243]
[1740420853605,0.0056243,2664.1,2663.8,3.2078]
[1740420853900,0.0056243,2664.1,2663.9,5.977]
[1740420854103,5.08383,2664.9,2664.0,0.75066]
[1740420854302,0.75052,2664.6,2664.5,0.75049]
[1740420854497,5.08383,2664.9,2664.4,4.87131]
[1740420854498,3.2078,2664.9,2664.4,4.87131]
[1740420854692,3.2078,2664.9,2664.4,2.995]
[1740420854894,0.75051,2664.5,2664.4,3.74554]
[1740420855301,0.0056243,2664.7,2664.5,0.75049]
[1740420855609,0.7560843,2664.7,2664.6,0.75049]
[1740420855904,0.0056243,2664.7,2664.4,6.2028]
[1740420856201,0.75051,2664.5,2664.4,2.995]
[1740420857107,0.5796243,2664.7,2664.1,1.1378]
[1740420857108,3.2078,2664.6,2664.1,1.1378]
[1740420857400,0.7506,2664.2,2664.1,4.1328]
[1740420857603,6.21423,2664.6,2664.1,4.1328]
[1740420857805,0.75057,2664.4,2664.3,0.75055]
[1740420857994,4.338,2664.6,2664.1,4.1328]
[1740420858198,3.9583,2664.6,2664.5,0.75051]
[1740420858407,3.2078,2664.6,2664.5,0.75051]
[1740420858598,0.0056243,2664.7,2664.6,0.75049]
[1740420860517,0.0056243,2664.7,2664.6,2.45979]
[1740420861805,3.2078,2665.3,2664.6,7.7093]
[1740420862104,0.3753,2666.2,2665.0,1.8759]
[1740420862105,3.2078,2665.7,2665.0,1.8759]
[1740420862313,0.75031,2665.3,2665.2,0.75029]
[1740420862904,0.75032,2665.2,2665.1,4.12]
[1740420863106,0.75032,2665.2,2665.1,1.126]
[1740420863613,0.75032,2665.2,2665.1,4.87035]
[1740420863910,1.85801,2665.3,2665.2,0.75032]
[1740420864304,1.1077,2665.3,2665.2,0.75032]
[1740420864810,0.75032,2665.2,2665.1,0.54]
[1740420865306,0.75032,2665.2,2665.1,1.29035]
[1740420866209,1.1077,2665.3,2665.1,0.54]
[1740420866614,3.2078,2665.4,2665.1,0.54]
[1740420866906,3.2078,2665.4,2665.2,0.547]
[1740420869910,3.2078,2665.4,2665.3,2.993]
[1740420871908,3.2078,2665.4,2665.1,0.54]
[1740420872116,3.2078,2665.4,2665.0,0.0056243]
[1740420873412,3.2078,2665.4,2665.0,0.5682243]
[1740420876817,0.0056243,2665.5,2665.0,0.5682243]
[1740420878817,3.2078,2665.4,2665.0,0.5682243]
[1740420879205,3.2078,2665.1,2665.0,0.0056243]
[1740420881516,3.2134243,2665.5,2665.0,0.0056243]
[1740420881713,0.0056243,2665.5,2665.0,0.0056243]
[1740420881915,0.0056243,2665.5,2665.2,3.2078]
[1740420882124,0.0056243,2665.5,2665.2,9.7578]
[1740420885823,4.3e-06,2665.5,2665.2,9.7578]
[1740420886624,4.3e-06,2665.5,2665.3,0.55]
[1740420886824,4.3e-06,2665.5,2665.4,3.5441]
[1740420887526,4.3e-06,2665.5,2665.4,2.982]
[1740420887727,4.3e-06,2665.5,2665.4,5.974]
[1740420892624,4.3e-06,2665.5,2665.4,2.992]
[1740420893433,4.3e-06,2665.5,2665.4,3.4498636]
[1740420895325,4.3e-06,2665.5,2665.4,2.992]
[1740420895525,1.0772,2666.1,2665.4,2.992]
[1740420895725,1.0772,2666.1,2665.6,3.2078]
[1740420895930,1.0772,2666.1,2665.7,0.5606]
[1740420896231,1.0772,2666.1,2665.8,2.991]
[1740420897429,0.0056243,2666.2,2666.0,3.2078]
[1740420897832,0.0056243,2666.2,2666.1,0.5381]
[1740420898035,4.3e-06,2666.2,2666.1,3.5201]
[1740420898931,4.3e-06,2666.2,2666.1,3.81778801]
[1740420900235,4.3e-06,2666.2,2666.1,3.5201]
[1740420900449,4.3e-06,2666.2,2666.1,6.5111]
[1740420901531,3.2078,2666.8,2666.1,3.5291]
[1740420901731,0.5625,2666.7,2666.3,3.2078]
[1740420901935,0.5467,2666.6,2666.3,3.2078]
[1740420902331,0.5467,2666.6,2666.3,44.0078]
[1740420903343,0.5467,2666.6,2666.3,3.2078]
[1740420903534,0.5467,2666.6,2666.3,2.991]
[1740420904033,3.2078,2666.5,2665.9,0.5549]
[1740420904235,3.2078,2666.5,2665.9,2.991]
[1740420904439,3.2078,2666.2,2665.9,2.991]
[1740420904635,1.1002,2666.1,2665.7,2.991]
[1740420904937,1.6507,2666.1,2665.7,2.991]
[1740420905232,1.6507,2666.1,2665.8,0.75015]
[1740420905434,0.75015,2665.8,2665.7,3.74115]
[1740420906035,0.75014,2665.9,2665.8,0.75012]
[1740420907141,0.75015,2665.9,2665.8,0.75013]
[1740420907542,1.1002,2666.1,2665.7,2.991]
[1740420907842,0.75003,2666.3,2666.2,0.75001]
[1740420908438,0.74999,2666.4,2666.3,0.74998]
[1740420908634,1.1292,2666.7,2666.6,0.74992]
[1740420908940,0.74994,2666.6,2666.5,0.74992]
[1740420909140,1.87911,2666.7,2666.6,0.74992]
[1740420909542,0.74995,2666.6,2666.5,0.74993]
[1740420909739,0.74995,2666.5,2666.4,0.0056243]
[1740420910242,3.95775,2666.5,2666.4,0.0056243]
[1740420911444,3.2078,2666.5,2666.4,0.0056243]
[1740420911741,1.1292,2666.7,2666.6,0.74992]
[1740420911946,1.1292,2666.7,2666.4,0.0056243]
[1740420912145,0.74995,2666.6,2666.5,0.74992]
[1740420912846,1.87911,2666.7,2666.6,0.74992]
[1740420913041,0.74995,2666.5,2666.4,0.7555843]
[1740420913242,1.1292,2666.7,2666.4,0.0056243]
[1740420914044,1.1292,2666.7,2666.4,0.5604243]
[1740420916652,1.1292,2666.7,2666.4,0.0056243]
[1740420920557,3.2078,2666.5,2666.4,0.0056243]
[1740420924154,9.2078,2666.5,2665.6,1.142]
[1740420924359,3.5831,2666.2,2665.7,2.99]
[1740420924549,0.5913,2666.1,2665.7,2.99]
[1740420925553,0.5913,2666.1,2665.8,40.8]
[1740420926955,0.5913,2666.1,2665.6,0.5837243]
[1740420927157,0.5913,2666.1,2665.7,2.99]
[1740420927350,0.5637,2666.0,2665.7,2.99]
[1740420928157,0.5913,2666.1,2665.8,3.2078]
[1740420928761,0.5913,2666.1,2665.9,0.5896]
[1740420931361,0.5913,2666.1,2665.8,3.2078]
[1740420932458,3.2078,2666.0,2665.6,4.1381243]
[1740420932658,3.2078,2666.0,2665.6,7.1281243]
[1740420933562,0.5913,2666.1,2665.6,7.1281243]
[1740420933763,0.5508243,2666.2,2665.7,3.66551575]
[1740420934469,0.5508243,2666.2,2665.7,3.2078]
[1740420935554,0.0056243,2666.2,2665.7,3.2078]
[1740420935761,3.2078,2666.9,2666.0,3.2078]
[1740420935960,3.2078,2666.9,2666.1,4.6475]
[1740420936161,3.2078,2666.9,2666.1,5.10516306]
[1740420936362,1.1321,2666.8,2666.1,8.08716306]
[1740420936567,1.1321,2666.8,2666.1,5.10516306]
[1740420936762,1.1321,2666.8,2666.3,3.2078]
[1740420940073,3.2078,2666.9,2666.3,3.2078]
[1740420940462,3.2078,2666.9,2666.4,0.45746794]
[1740420940669,3.2078,2666.9,2666.5,2.989]
[1740420940874,3.2078,2666.9,2666.6,1.1346]
[1740420941163,3.2078,2667.2,2666.6,4.3424]
[1740420941469,3.2078,2667.8,2667.0,3.2078]
[1740420941670,3.2078,2667.8,2667.1,7.0641]
[1740420941866,3.2078,2667.8,2667.2,0.5857]
[1740420942164,3.2078,2667.8,2667.2,0.88580496]
[1740420943167,1.6837,2668.2,2667.3,3.2078]
[1740420943368,3.2078,2668.0,2667.3,3.2078]
[1740420944172,3.2078,2668.0,2667.4,0.7497]
[1740420944470,0.7496,2667.8,2667.7,0.74957]
[1740420945569,3.2078,2668.0,2667.9,0.74956]
[1740420945769,3.95733,2668.0,2667.9,0.74956]
[1740420946165,3.2078,2668.0,2667.7,0.5808]
[1740420947271,3.2078,2668.0,2667.6,0.5336]
[1740420947667,3.2078,2667.7,2667.2,0.5857]
[1740420947872,1.124,2667.6,2667.3,2.988]
[1740420948275,3.2078,2667.4,2667.3,2.988]
[1740420948677,1.124,2667.6,2667.3,2.988]
[1740420951775,3.2078,2667.4,2667.1,0.0056243]
[1740420952176,5.08207,2667.4,2667.1,0.0056243]
[1740420952376,0.74976,2667.2,2667.1,0.0056243]
[1740420953591,0.74976,2667.2,2667.1,0.7554043]
[1740420953790,3.2078,2667.4,2667.1,0.0056243]
[1740420953986,0.74976,2667.2,2667.1,0.7554043]
[1740420954189,0.5486,2667.5,2667.1,0.0056243]
[1740420955485,1.124,2667.6,2667.1,0.0056243]
[1740420955691,1.124,2667.6,2667.1,1.1703243]
[1740420956089,1.124,2667.6,2667.2,0.5651]
[1740420956491,3.2078,2668.1,2667.3,3.2078]
[1740420956692,0.5503,2667.9,2667.4,2.987]
[1740420957293,0.5503,2667.9,2667.8,0.74959]
[1740420957491,1.29986,2667.9,2667.8,0.74959]
[1740420957686,0.5503,2667.9,2667.6,0.5336]
[1740420957885,0.74961,2667.7,2667.6,0.5336]
[1740420958086,0.74966,2667.6,2667.5,0.74965]
[1740420958284,2.42423,2667.9,2667.4,2.987]
[1740420958488,0.74967,2667.5,2667.4,2.987]
[1740420958689,3.7718,2667.8,2667.4,2.987]
[1740420958886,0.74966,2667.6,2667.5,0.74965]
[1740420959490,3.2078,2667.8,2667.4,2.987]
[1740420959686,3.2078,2667.8,2667.7,0.74961]
[1740420960297,3.95739,2667.8,2667.7,0.74961]
[1740420960596,3.2078,2668.1,2668.0,0.74953]
[1740420961002,0.5784,2668.5,2668.4,0.74942]
[1740420961493,0.5784,2668.5,2668.2,6.1948]
[1740420961494,3.2078,2669.1,2669.0,0.74925]
[1740420962193,3.2078,2669.1,2668.8,0.0056243]
[1740420962494,0.74928,2668.9,2668.8,0.0056243]
[1740420962991,3.2078,2669.1,2668.8,0.0056243]
[1740420963392,0.74928,2668.9,2668.8,0.0056243]
[1740420965395,0.74928,2668.9,2668.8,0.7549343]
[1740420965595,0.74928,2668.9,2668.8,0.0056243]
[1740420967201,0.74944,2668.4,2668.3,0.74943]
[1740420968301,3.2078,2668.6,2668.5,0.74939]
[1740420968302,0.0056243,2668.6,2668.5,0.74939]
[1740420968900,0.0056243,2668.6,2668.5,1.29309]
[1740420971505,1.90097,2669.3,2668.7,1.87334]
[1740420971506,1.1518,2669.3,2668.7,1.87334]
[1740420971804,3.95695,2669.4,2669.3,0.74917]
[1740420972104,3.2078,2669.4,2669.3,0.74917]
[1740420972301,0.5734,2669.7,2669.6,0.74908]
[1740420972497,0.74907,2669.7,2669.6,0.74905]
[1740420972700,0.74904,2669.8,2669.7,0.74903]
[1740420972901,3.95682,2669.9,2669.8,0.74902]
[1740420973099,1.6941,2670.1,2669.4,2.9903]
[1740420973100,1.1205,2670.1,2670.0,0.74897]